bitfinex/quotes_SOLUSD_20210401
["timestamp","ask_amount","ask_price","bid_price","bid_amount"]
[1617259255789,1237.70412189,20.703,20.162,11.39350653]
[1617259256188,1237.70412189,20.703,20.162,278.2563245]
[1617259256389,1237.70412189,20.703,20.162,266.86281797]
[1617259278418,0.001,20.66,20.162,266.86281797]
[1617259278818,265.53005957,20.66,20.163,11.19561596]
[1617259279221,265.53005957,20.66,20.163,278.05843393]
[1617259279721,265.53005957,20.66,20.163,319.97237162]
[1617259280423,265.53005957,20.66,20.164,11.1495302]
[1617259280823,265.53005957,20.66,20.164,278.01234817]
[1617259281024,265.53005957,20.66,20.164,291.95315852]
[1617259281323,265.53005957,20.66,20.164,280.80362832]
[1617259282226,265.53005957,20.66,20.164,266.86281797]
[1617259308163,265.53005957,20.66,20.164,277.86557494]
[1617259308765,265.53005957,20.66,20.165,24.6968317]
[1617259309065,265.53005957,20.66,20.166,10.92200031]
[1617259309470,265.53005957,20.66,20.166,266.86281797]
[1617259318585,2.24598933,20.659,20.166,266.86281797]
[1617259318985,184.74648311,20.659,20.166,266.86281797]
[1617259319186,267.7750489,20.659,20.166,266.86281797]
[1617259400302,267.7750489,20.659,20.166,83.32919994]
[1617259402605,267.7750489,20.659,20.157,183.53361803]
[1617259402805,267.7750489,20.659,20.141,83.32919994]
[1617259403604,267.7750489,20.659,20.136,83.32919994]
[1617259404705,267.7750489,20.659,20.134,83.32919994]
[1617259405707,267.7750489,20.659,20.119,83.32919994]
[1617259411614,267.7750489,20.659,20.116,83.32919994]
[1617259412717,267.7750489,20.659,20.114,83.32919994]
[1617259413619,265.52905957,20.659,20.114,83.32919994]
[1617259420624,265.52905957,20.659,20.114,266.86281797]
[1617259469090,265.52905957,20.659,20.116,11.6641308]
[1617259469290,265.52905957,20.659,20.127,26.22945189]
[1617259469693,265.52905957,20.659,20.128,40.79849976]
[1617259470091,265.52905957,20.659,20.129,11.37079156]
[1617259470492,265.52905957,20.659,20.133,594.00495864]
[1617259471092,265.52905957,20.659,20.133,860.86777661]
[1617259471891,265.52905957,20.659,20.133,835.28861571]
[1617259477098,265.52905957,20.659,20.133,846.65719028]
[1617259477600,265.52905957,20.659,20.133,835.28861571]
[1617259479404,265.52905957,20.659,20.133,846.6571273]
[1617259479604,265.52905957,20.659,20.133,835.28861571]
[1617259480806,265.52905957,20.659,20.133,909.74861571]
[1617259482909,265.52905957,20.659,20.133,921.14631952]
[1617259483109,265.52905957,20.659,20.133,909.74861571]
[1617259484715,265.52905957,20.659,20.133,935.39368693]
[1617259484915,265.52905957,20.659,20.133,923.9958775]
[1617259485415,265.52905957,20.659,20.134,11.39734721]
[1617259485616,265.52905957,20.659,20.138,74.453]
[1617259486316,265.52905957,20.659,20.138,341.31581797]
[1617259493427,265.52905957,20.659,20.138,352.91612945]
[1617259494027,265.52905957,20.659,20.138,1089.53152575]
[1617259494428,265.52905957,20.659,20.14,11.55376496]
[1617259494627,265.52905957,20.659,20.144,74.422]
[1617259495327,265.52905957,20.659,20.144,266.86281797]
[1617259497032,2.24598933,20.658,20.144,266.86281797]
[1617259497434,267.7750489,20.658,20.144,266.86281797]
[1617259508948,2.24598933,20.658,20.143,74.423]
[1617259520764,84.98423115,20.658,20.143,157.43925735]
[1617259521766,266.77558426,20.658,20.143,340.27378616]
[1617259531176,266.77558426,20.658,20.143,265.85078616]
[1617259544889,266.77558426,20.658,20.143,83.01625735]
[1617259552999,266.77558426,20.658,20.143,265.85078616]
[1617259564214,0.001,20.643,20.143,265.85078616]
[1617259564514,264.53059493,20.643,20.143,265.85078616]
[1617259677787,2.24598933,20.642,20.143,265.85078616]
[1617259678185,266.77558426,20.642,20.143,265.85078616]
[1617259698214,266.77558426,20.642,20.143,265.8495309]
[1617259774019,264.52959493,20.642,20.143,265.8495309]
[1617259850136,0.001,20.638,20.143,265.8495309]
[1617259850539,82.73924182,20.638,20.143,265.8495309]
[1617259850741,264.53059493,20.638,20.143,265.8495309]
[1617259858150,2.24598933,20.637,20.143,265.8495309]
[1617259858650,266.77558426,20.637,20.143,265.8495309]
[1617259953169,264.52959493,20.637,20.143,265.8495309]
[1617260037289,2.24598933,20.636,20.143,265.8495309]
[1617260037689,184.03734244,20.636,20.143,265.8495309]
[1617260037890,266.77558426,20.636,20.143,265.8495309]
[1617260112896,2.24598933,20.636,20.122,566.66210685]
[1617260115200,2.24598933,20.636,20.122,577.79158101]
[1617260115500,2.24598933,20.636,20.122,619.50723399]
[1617260115902,2.24598933,20.636,20.122,608.37775983]
[1617260116600,2.24598933,20.636,20.122,594.47254217]
[1617260117200,2.24598933,20.636,20.122,566.66210685]
[1617260123913,85.09848231,20.636,20.122,649.79338499]
[1617260125014,267.21230345,20.636,20.122,832.86337359]
[1617260133426,264.96631412,20.636,20.122,832.86337359]
[1617260134528,264.96631412,20.636,20.122,266.20126674]
[1617260136332,0.001,20.624,20.122,266.20126674]
[1617260136732,82.85349298,20.624,20.122,266.20126674]
[1617260136934,264.96731412,20.624,20.122,266.20126674]
[1617260185608,264.96731412,20.624,20.122,83.13127814]
[1617260186010,264.96731412,20.624,20.116,83.13127814]
[1617260191020,264.96731412,20.624,20.113,83.13127814]
[1617260195929,264.96731412,20.624,20.113,266.20126674]
[1617260203938,264.96731412,20.624,20.113,83.13127814]
[1617260207042,264.96731412,20.624,20.107,83.13127814]
[1617260215052,2.24598933,20.623,20.107,83.13127814]
[1617260215453,267.21230345,20.623,20.107,83.13127814]
[1617260256014,267.21230345,20.623,20.107,266.20126674]
[1617260259018,267.21230345,20.623,20.108,5.0]
[1617260259418,267.21230345,20.623,20.108,271.20126674]
[1617260275937,267.21230345,20.623,20.108,88.13127814]
[1617260279945,267.21230345,20.623,20.108,271.20126674]
[1617260313590,264.96631412,20.623,20.108,271.20126674]
[1617260397609,2.24598933,20.622,20.108,271.20126674]
[1617260398109,267.21230345,20.622,20.108,271.20126674]
[1617260416040,267.21230345,20.622,20.108,88.13127814]
[1617260420046,267.21230345,20.622,20.108,5.0]
[1617260421055,267.21230345,20.622,20.108,88.13127814]
[1617260446091,267.21230345,20.622,20.108,5.0]
[1617260456099,267.21230345,20.622,20.074,80.12007421]
[1617260459005,267.21230345,20.622,20.071,80.12007421]
[1617260460004,267.21230345,20.622,20.061,80.12007421]
[1617260462004,267.21230345,20.622,20.042,80.12007421]
[1617260462905,267.21230345,20.622,20.041,183.0699886]
[1617260464007,267.21230345,20.622,20.022,80.12007421]
[1617260465107,267.21230345,20.622,20.021,80.12007421]
[1617260465907,267.21230345,20.622,20.015,80.12007421]
[1617260472015,267.21230345,20.622,20.015,263.19006281]
[1617260493751,264.96631412,20.622,20.015,263.19006281]
[1617260568051,264.96631412,20.622,20.015,80.12007421]
[1617260571057,264.96631412,20.622,20.006,183.0699886]
[1617260572059,264.96631412,20.622,20.006,80.12007421]
[1617260573963,264.96631412,20.622,20.005,80.12007421]
[1617260577166,2.24598933,20.621,20.005,80.12007421]
[1617260577566,184.35981047,20.621,20.005,80.12007421]
[1617260577766,267.21230345,20.621,20.005,80.12007421]
[1617260602007,267.21230345,20.621,19.998,183.0699886]
[1617260603010,267.21230345,20.621,19.998,263.19006281]
[1617260604013,267.21230345,20.621,19.983,80.12007421]
[1617260608017,267.21230345,20.621,19.983,263.19006281]
[1617260609320,267.21230345,20.621,19.983,183.0699886]
[1617260610021,267.21230345,20.621,19.983,263.19006281]
[1617260612029,267.21230345,20.621,19.983,80.12007421]
[1617260666797,823.58519675,20.455,19.983,80.12007421]
[1617260667196,1088.55151087,20.455,19.983,80.12007421]
[1617260710965,0.001,20.453,19.983,80.12007421]
[1617260711265,264.96731412,20.453,19.983,80.12007421]
[1617260716778,0.001,20.453,19.892,55.8531403]
[1617260717773,0.001,20.453,19.892,44.09455874]
[1617260717977,0.001,20.453,19.894,11.75701284]
[1617260718775,0.001,20.453,19.899,55.32540133]
[1617260719074,0.001,20.453,19.9,11.64716295]
[1617260719276,0.001,20.453,19.907,11.64326868]
[1617260719476,0.001,20.453,19.907,360.92842499]
[1617260719677,0.001,20.453,19.908,244.48281978]
[1617260719876,0.001,20.453,19.912,26.18979203]
[1617260720077,0.001,20.453,19.916,11.63794948]
[1617260720978,0.001,20.453,19.919,11.32911144]
[1617260721178,0.001,20.453,19.92,53.70843327]
[1617260721379,0.001,20.453,19.921,11.25414148]
[1617260721578,0.001,20.453,19.924,11.17984457]
[1617260721780,0.001,20.453,19.929,11.0195754]
[1617260721980,0.001,20.453,19.935,10.84964401]
[1617260722281,0.001,20.453,19.935,24.3925337]
[1617260722481,0.001,20.453,19.936,10.82344703]
[1617260723481,0.001,20.453,19.935,51.45931382]
[1617260723681,0.001,20.453,19.94,64.09529161]
[1617260723882,0.001,20.453,19.94,53.41274301]
[1617260724782,0.001,20.453,19.94,77.38675349]
[1617260725084,0.001,20.453,19.94,66.73163772]
[1617260725286,0.001,20.453,19.94,77.38257527]
[1617260725984,0.001,20.453,19.94,104.01174052]
[1617260726686,0.001,20.453,19.94,93.36080297]
[1617260726889,0.001,20.453,19.94,103.99843284]
[1617260727387,0.001,20.453,19.94,93.36080297]
[1617260727788,0.001,20.453,19.94,529.09924041]
[1617260727990,266.75870518,20.453,19.94,797.54696034]
[1617260728189,266.75870518,20.453,19.941,10.60752932]
[1617260728389,266.75870518,20.453,19.941,168.10694887]
[1617260728590,266.75870518,20.453,19.942,10.59122509]
[1617260728791,266.75870518,20.453,19.945,10.46969324]
[1617260729191,266.75870518,20.453,19.945,195.08507785]
[1617260729395,266.75870518,20.453,19.945,278.91741317]
[1617260729595,266.75870518,20.453,19.945,268.44771993]
[1617260729997,266.75870518,20.453,19.945,278.80950578]
[1617260730194,266.75870518,20.453,19.945,268.44771993]
[1617260744013,266.75870518,20.453,19.946,9.64817031]
[1617260744313,266.75870518,20.453,19.947,21.7349616]
[1617260744923,266.75870518,20.453,19.947,290.18268153]
[1617260745119,266.75870518,20.453,19.947,407.81609726]
[1617260745320,266.75870518,20.453,19.947,280.5226986]
[1617260745522,266.75870518,20.453,19.947,268.44771993]
[1617260746120,266.75870518,20.453,19.948,9.61484771]
[1617260746521,266.75870518,20.453,19.948,290.07382404]
[1617260748024,266.75870518,20.453,19.948,314.11859315]
[1617260748222,266.75870518,20.453,19.951,9.53308249]
[1617260748622,266.75870518,20.453,19.952,9.93890232]
[1617260748923,266.75870518,20.453,19.952,127.54190184]
[1617260749123,266.75870518,20.453,19.959,21.94425708]
[1617260749323,266.75870518,20.453,19.961,75.108]
[1617260749525,266.75870518,20.453,19.961,84.79140901]
[1617260749726,266.75870518,20.453,19.962,9.64479589]
[1617260749927,266.75870518,20.453,19.963,57.71588153]
[1617260750327,266.75870518,20.453,19.963,93.93219974]
[1617260750528,266.75870518,20.453,19.964,9.62889495]
[1617260750928,266.75870518,20.453,19.968,75.089]
[1617260751328,266.75870518,20.453,19.964,268.44771993]
[1617260751528,266.75870518,20.453,19.968,268.44771993]
[1617260751728,266.75870518,20.453,19.964,278.05764286]
[1617260751927,266.75870518,20.453,19.964,268.44771993]
[1617260752127,266.75870518,20.453,19.968,83.83233532]
[1617260752428,266.75870518,20.453,19.964,268.44771993]
[1617260752627,266.75870518,20.453,19.968,268.44771993]
[1617260752828,266.75870518,20.453,19.968,83.83233532]
[1617260753230,266.75870518,20.453,19.968,268.44771993]
[1617260757038,2.24598933,20.452,19.968,268.44771993]
[1617260757437,269.00369451,20.452,19.968,268.44771993]
[1617260854172,266.75770518,20.452,19.968,268.44771993]
[1617260905334,266.75770518,20.452,19.971,10.60026888]
[1617260905837,266.75770518,20.452,19.972,10.56241707]
[1617260906034,266.75770518,20.452,19.973,10.55259035]
[1617260906435,266.75770518,20.452,19.972,409.63882858]
[1617260906636,266.75770518,20.452,19.973,184.61538461]
[1617260906838,266.75770518,20.452,19.973,268.44771993]
[1617260940281,2.24598933,20.451,19.973,268.44771993]
[1617260940681,269.00369451,20.451,19.973,268.44771993]
[1617260956907,269.00369451,20.451,19.973,278.89567753]
[1617260957107,269.00369451,20.451,19.973,268.44771993]
[1617260999968,0.001,20.43,19.973,268.44771993]
[1617261000369,266.75870518,20.43,19.973,268.44771993]
[1617261003175,266.75870518,20.43,19.973,268.44655293]
[1617261006481,266.75870518,20.43,19.973,318.57234284]
[1617261006882,266.75870518,20.43,19.973,308.01954496]
[1617261007582,266.75870518,20.43,19.973,294.82854762]
[1617261008885,266.75870518,20.43,19.973,268.44655293]
[1617261050642,266.75870518,20.43,19.974,69.03496319]
[1617261051043,266.75870518,20.43,19.974,337.48151612]
[1617261051545,266.75870518,20.43,19.974,366.12061932]
[1617261051744,266.75870518,20.43,19.974,380.44017092]
[1617261053146,266.75870518,20.43,19.974,328.85214572]
[1617261053347,266.75870518,20.43,19.974,325.97568892]
[1617261054351,266.75870518,20.43,19.974,351.69939256]
[1617261054751,266.75870518,20.43,19.974,340.26663539]
[1617261055351,266.75870518,20.43,19.974,268.44655293]
[1617261060958,266.75870518,20.43,19.975,11.44887784]
[1617261061257,266.75870518,20.43,19.974,268.44655293]
[1617261061457,266.75870518,20.43,19.975,268.44655293]
[1617261061860,266.75870518,20.43,19.974,268.44655293]
[1617261089406,266.75870518,20.43,19.974,279.90678338]
[1617261090106,266.75870518,20.43,19.974,294.2243622]
[1617261090709,266.75870518,20.43,19.974,637.91998392]
[1617261091208,266.75870518,20.43,19.974,666.54185775]
[1617261091710,266.75870518,20.43,19.974,723.80781821]
[1617261094013,266.75870518,20.43,19.974,712.34758776]
[1617261094415,266.75870518,20.43,19.974,612.14217465]
[1617261102625,266.75870518,20.43,19.974,497.57696741]
[1617261108437,266.75870518,20.43,19.974,268.44655293]
[1617261109940,266.75870518,20.43,19.975,359.02248436]
[1617261110139,266.75870518,20.43,19.984,11.3009218]
[1617261110339,266.75870518,20.43,19.985,25.3462221]
[1617261110942,266.75870518,20.43,19.987,11.20913623]
[1617261111145,266.75870518,20.43,19.986,11.24429287]
[1617261111343,266.75870518,20.43,19.987,268.44655293]
[1617261111748,266.75870518,20.43,19.986,321.95308609]
[1617261111943,266.75870518,20.43,19.987,268.44655293]
[1617261112245,266.75870518,20.43,19.986,377.60582183]
[1617261112543,266.75870518,20.43,19.987,268.44655293]
[1617261117751,2.24598933,20.429,19.987,268.44655293]
[1617261118451,269.00369451,20.429,19.987,268.44655293]
[1617261138584,269.00369451,20.429,19.989,11.09629663]
[1617261138986,269.00369451,20.429,19.989,279.54284956]
[1617261139187,269.00369451,20.429,19.989,293.38945383]
[1617261139486,269.00369451,20.429,19.99,11.07335601]
[1617261139987,269.00369451,20.429,19.99,279.51990894]
[1617261140387,269.00369451,20.429,19.99,487.15453851]
[1617261140589,269.00369451,20.429,19.99,476.0811825]
[1617261141589,269.00369451,20.429,19.99,462.23887386]
[1617261142691,269.00369451,20.429,19.99,487.19225928]
[1617261142890,269.00369451,20.429,19.992,11.05038821]
[1617261143393,269.00369451,20.429,19.993,11.01992981]
[1617261143593,269.00369451,20.429,19.993,560.80452014]
[1617261143792,269.00369451,20.429,19.994,24.73825835]
[1617261144192,269.00369451,20.429,19.995,10.94658912]
[1617261144393,269.00369451,20.429,19.995,229.79027753]
[1617261144795,269.00369451,20.429,19.996,10.94374407]
[1617261144997,269.00369451,20.429,19.995,539.46320396]
[1617261145196,269.00369451,20.429,19.997,10.94898452]
[1617261145396,269.00369451,20.429,19.997,128.28827201]
[1617261145596,269.00369451,20.429,19.997,396.73482494]
[1617261145798,269.00369451,20.429,19.999,10.90039941]
[1617261146000,269.00369451,20.429,20.001,10.82698239]
[1617261146197,269.00369451,20.429,20.001,78.43835452]
[1617261146397,269.00369451,20.429,20.004,10.75396533]
[1617261146597,269.00369451,20.429,20.007,10.64712996]
[1617261146997,269.00369451,20.429,20.008,10.36596136]
[1617261147399,269.00369451,20.429,20.009,49.12405536]
[1617261147599,269.00369451,20.429,20.01,10.3067046]
[1617261147999,269.00369451,20.429,20.016,10.11907916]
[1617261148200,269.00369451,20.429,20.023,9.93702413]
[1617261148401,269.00369451,20.429,20.021,22.4236173]
[1617261148803,269.00369451,20.429,20.023,268.44655293]
[1617261149203,269.00369451,20.429,20.022,9.95682193]
[1617261149404,269.00369451,20.429,20.023,278.37673628]
[1617261149703,269.00369451,20.429,20.022,315.72753438]
[1617261150107,269.00369451,20.429,20.023,268.44655293]
[1617261150405,269.00369451,20.429,20.023,184.61421761]
[1617261150607,269.00369451,20.429,20.022,268.44655293]
[1617261150805,269.00369451,20.429,20.023,268.44655293]
[1617261151106,269.00369451,20.429,20.022,268.44655293]
[1617261151508,269.00369451,20.429,20.023,268.44655293]
[1617261151807,269.00369451,20.429,20.022,268.44655293]
[1617261152208,269.00369451,20.429,20.023,184.61421761]
[1617261152507,269.00369451,20.429,20.022,83.83233532]
[1617261152508,269.00369451,20.429,20.022,268.44655293]
[1617261152708,269.00369451,20.429,20.023,83.83233532]
[1617261152908,269.00369451,20.429,20.023,268.44655293]
[1617261153107,269.00369451,20.429,20.023,184.61421761]
[1617261153309,269.00369451,20.429,20.023,83.83233532]
[1617261153711,269.00369451,20.429,20.023,184.61421761]
[1617261154110,269.00369451,20.429,20.023,268.44655293]
[1617261213891,266.75770518,20.429,20.023,268.44655293]
[1617261217698,1058.21530803,20.745,20.023,268.44655293]
[1617261218598,1141.56931449,20.745,20.023,268.44655293]
[1617261224111,1141.56931449,20.745,20.023,83.83233532]
[1617261236024,1141.56931449,20.745,20.023,268.44655293]
[1617261244035,1141.56931449,20.745,20.023,83.83233532]
[1617261245435,1185.05694879,20.83,20.023,83.83233532]
[1617261264056,857.6799277,20.635,20.023,268.44655293]
[1617261285986,0.001,20.595,20.023,268.44655293]
[1617261286187,0.001,20.595,20.039,0.001]
[1617261286386,0.001,20.595,20.039,268.44755293]
[1617261295795,2.24598933,20.594,20.039,268.44755293]
[1617261300906,0.1083746,21.1,20.039,268.44755293]
[1617261308821,931.00375008,20.695,20.039,268.44755293]
[1617261313629,0.1083746,21.1,20.039,268.44755293]
[1617261319937,944.62558151,20.701,20.039,268.44755293]
[1617261335556,1.1027599,25.519,20.039,83.86161822]
[1617261338261,29.0,22.5,20.039,83.86161822]
[1617261347068,29.0,22.5,20.039,267.88870445]
[1617261353980,29.0,22.5,20.039,83.86161822]
[1617261354781,29.0,22.5,20.039,0.3252451]
[1617261355881,29.0,22.5,20.039,83.86161822]
[1617261361892,29.0,22.5,20.039,267.88870445]
[1617261362794,29.0,22.39,20.039,267.88870445]
[1617261393545,28.83451621,22.39,20.039,267.88870445]
[1617261395448,1035.04048443,20.725,20.039,267.88870445]
[1617261406659,1035.04048443,20.725,20.039,253.58934345]
[1617261437508,28.83451621,22.39,20.039,253.58934345]
[1617261439608,909.11534132,20.611,20.039,253.58934345]
[1617261439808,1122.96193734,21.01,20.039,253.58934345]
[1617261440714,193.69392748,24.0,20.039,253.58934345]
[1617261475870,14.50391134,22.02,20.039,253.58934345]
[1617261479374,14.50391134,22.02,20.039,255.86512461]
[1617261487988,14.50391134,22.02,20.039,270.43802061]
[1617261510421,8.67012799,22.02,20.039,270.43802061]
[1617261527046,996.03348502,20.555,20.039,270.43802061]
[1617261528647,1230.32539564,20.954,20.555,0.00643277]
[1617261534255,1230.32539564,20.954,20.129,69.56225722]
[1617261542873,1230.32539564,20.954,20.126,69.56225722]
[1617261544474,1230.32539564,20.954,20.542,13.51901972]
[1617261561697,1230.32539564,20.954,20.542,2.53901972]
[1617261570108,1047.96550977,20.682,20.542,2.53901972]
[1617261576917,1047.96550977,20.682,20.542,4.60721767]
[1617261614272,980.94771187,20.58,20.542,4.60721767]
[1617261663949,980.94771187,20.58,20.542,2.53901972]
[1617261735140,980.94771187,20.58,20.151,62.72127694]
[1617261751263,980.94771187,20.58,20.151,75.26952289]
[1617261781512,986.57417782,20.631,20.151,75.26952289]
[1617261781911,986.57417782,20.631,20.151,259.29660912]
[1617261782813,986.57417782,20.631,20.16,14.0]
[1617261783213,986.57417782,20.631,20.16,89.26952289]
[1617261805849,986.57417782,20.631,20.16,273.29660912]
[1617261813861,986.57417782,20.631,20.16,89.26952289]
[1617261832087,986.57417782,20.631,20.16,91.53580068]
[1617261858323,986.57417782,20.631,20.174,0.001]
[1617261858724,986.57417782,20.631,20.174,75.27052289]
[1617261874146,986.57417782,20.631,20.18,15.0]
[1617261874444,986.57417782,20.631,20.18,27.54824595]
[1617261918915,986.57417782,20.631,20.18,90.26952289]
[1617261924822,986.57417782,20.631,20.18,15.0]
[1617261932935,986.57417782,20.631,20.18,27.54824595]
[1617261933836,986.57417782,20.631,20.18,29.65859598]
[1617261936136,1069.54533547,20.631,20.18,29.65859598]
[1617261938238,1069.54533547,20.631,20.18,112.92584419]
[1617261944048,82.91103385,20.631,20.18,112.92584419]
[1617261958266,82.91103385,20.631,20.18,29.65859598]
[1617261960273,82.91103385,20.631,20.18,112.92584419]
[1617261967183,82.91103385,20.631,20.18,29.65859598]
[1617261969085,1074.36220551,20.631,20.18,29.65859598]
[1617261976294,1074.36220551,20.631,20.18,112.92584419]
[1617261981202,1074.36220551,20.631,20.18,29.65859598]
[1617262019660,1074.36220551,20.631,20.18,31.92252185]
[1617262023465,1074.36220551,20.631,20.18,29.81217182]
[1617262102379,1074.36220551,20.631,20.18,113.07942003]
[1617262107186,1074.36220551,20.631,20.18,29.81217182]
[1617262113797,1074.36220551,20.631,20.18,27.54824595]
[1617262131019,1074.36220551,20.631,20.18,29.65950879]
[1617262144440,1074.36220551,20.631,20.185,0.001]
[1617262144942,1074.36220551,20.631,20.185,12.54924595]
[1617262145545,1074.36220551,20.631,20.185,1.58924595]
[1617262197108,1074.36220551,20.631,20.185,3.85435972]
[1617262289859,1074.36220551,20.631,20.185,5.96561076]
[1617262293264,1074.36220551,20.631,20.185,3.70049699]
[1617262376679,1074.36220551,20.631,20.185,5.9650411]
[1617262383590,1074.36220551,20.631,20.185,3.85379006]
[1617262430052,1074.36220551,20.631,20.226,0.001]
[1617262430454,1074.36220551,20.631,20.226,1.59024595]
[1617262484632,1071.88511856,20.631,20.226,1.59024595]
[1617262502852,1071.88511856,20.631,20.226,3.6980688]
[1617262528787,991.45117166,20.631,20.226,2.10882285]
[1617262537600,991.45117166,20.631,20.226,6.23527955]
[1617262540906,1074.43462437,20.631,20.226,6.23527955]
[1617262561537,1074.43462437,20.631,20.226,8.49475114]
[1617262563642,1074.43462437,20.631,20.226,6.38692829]
[1617262653480,1074.43462437,20.631,20.226,4.1274567]
[1617262655586,1074.43462437,20.631,20.226,6.23556163]
[1617262710478,1074.43462437,20.631,20.226,2.75556163]
[1617262715585,0.001,20.625,20.226,2.75556163]
[1617262715789,0.001,20.625,20.239,0.001]
[1617262715985,82.98445271,20.625,20.239,0.001]
[1617262716186,82.98445271,20.625,20.239,0.6484567]
[1617262735203,82.98445271,20.625,20.239,2.90625672]
[1617262747726,82.98445271,20.625,20.18,13.43625672]
[1617262830734,82.98445271,20.625,20.18,15.54976313]
[1617262841847,82.98445271,20.625,20.18,98.83352279]
[1617262843851,82.98445271,20.625,20.18,15.54976313]
[1617262846857,82.98445271,20.625,20.18,98.83352279]
[1617262859976,82.98445271,20.625,20.18,15.54976313]
[1617262861878,82.98445271,20.625,20.18,98.83352279]
[1617262863882,82.98445271,20.625,20.18,15.54976313]
[1617262865888,82.98445271,20.625,20.18,98.83352279]
[1617262888915,82.98445271,20.625,20.18,282.23963632]
[1617262905033,82.98445271,20.625,20.18,98.83352279]
[1617262914446,2.25554223,20.624,20.18,98.83352279]
[1617262914846,85.23899494,20.624,20.18,98.83352279]
[1617262921859,85.23899494,20.624,20.18,15.54976313]
[1617262923661,85.23899494,20.624,20.18,13.43625672]
[1617262928873,85.23899494,20.624,20.18,96.72001638]
[1617262935983,85.23899494,20.624,20.18,13.43625672]
[1617262974034,85.23899494,20.624,20.18,96.72001638]
[1617262977041,85.23899494,20.624,20.18,13.43625672]
[1617262982948,85.23899494,20.624,20.18,96.72001638]
[1617262992961,85.23899494,20.624,20.18,280.12612991]
[1617263001577,0.001,20.608,20.18,280.12612991]
[1617263001978,82.98445271,20.608,20.18,280.12612991]
[1617263008885,82.98445271,20.608,20.18,96.72001638]
[1617263013793,82.98445271,20.608,20.18,98.83310196]
[1617263015995,82.98445271,20.608,20.18,15.5493423]
[1617263084687,82.98445271,20.608,20.18,98.83310196]
[1617263086890,82.98445271,20.608,20.18,15.5493423]
[1617263087891,82.98445271,20.608,20.18,98.83310196]
[1617263097505,2.25554223,20.607,20.18,98.83310196]
[1617263097906,85.23899494,20.607,20.18,98.83310196]
[1617263100910,85.23899494,20.607,20.18,282.23921549]
[1617263103215,85.23899494,20.607,20.18,280.12612991]
[1617263116935,85.23899494,20.607,20.18,96.72001638]
[1617263119933,85.23899494,20.607,20.18,13.43625672]
[1617263124941,85.23899494,20.607,20.18,96.72001638]
[1617263132853,2.25554223,20.607,20.18,13.43625672]
[1617263144968,85.20212069,20.607,20.18,96.67050166]
[1617263155075,85.20212069,20.607,20.18,13.43625672]
[1617263178705,85.20212069,20.607,20.18,10.44625672]
[1617263192020,85.20212069,20.607,20.18,12.56294469]
[1617263193521,82.94657846,20.607,20.18,12.56294469]
[1617263274223,2.25554223,20.606,20.18,12.56294469]
[1617263274722,85.20212069,20.606,20.18,12.56294469]
[1617263283225,85.20212069,20.606,20.18,10.44625672]
[1617263285730,85.20212069,20.606,20.18,2.44625672]
[1617263287233,0.001,20.57,20.18,2.44625672]
[1617263287632,82.94757846,20.57,20.18,2.44625672]
[1617263372465,82.94757846,20.57,20.18,4.5612449]
[1617263455071,2.25554223,20.569,20.18,4.5612449]
[1617263455472,85.20212069,20.569,20.18,4.5612449]
[1617263464181,85.20212069,20.569,20.18,2.44625672]
[1617263548614,85.20212069,20.569,20.18,4.5597006]
[1617263554023,82.94657846,20.569,20.18,4.5597006]
[1617263566242,82.94657846,20.569,20.18,87.79394554]
[1617263570149,82.94657846,20.569,20.18,4.5597006]
[1617263576260,82.94657846,20.569,20.18,87.79394554]
[1617263631638,2.25554223,20.568,20.18,87.79394554]
[1617263632039,85.20212069,20.568,20.18,87.79394554]
[1617263644059,85.20212069,20.568,20.18,85.68050166]
[1617263644458,85.20212069,20.568,20.18,84.22373566]
[1617263665179,85.20212069,20.568,20.18,267.52070054]
[1617263666783,85.20212069,20.568,20.18,184.2864556]
[1617263667384,85.20212069,20.568,20.18,0.98949072]
[1617263730772,85.20212069,20.568,20.18,3.10458948]
[1617263733675,82.94657846,20.568,20.18,3.10458948]
[1617263736779,985.12732947,20.653,20.18,3.10458948]
[1617263747497,1068.15589526,20.653,20.18,3.10458948]
[1617263763026,80.78382539,20.653,20.18,3.10458948]
[1617263769334,906.72438629,20.619,20.18,3.10458948]
[1617263769733,987.50821168,20.619,20.18,3.10458948]
[1617263783658,80.45436922,20.619,20.18,3.10458948]
[1617263804892,80.45436922,20.619,20.18,5.67878605]
[1617263812106,2.25554223,20.618,20.18,5.67878605]
[1617263812511,82.70991145,20.618,20.18,5.67878605]
[1617263823623,82.70991145,20.618,20.18,3.56368729]
[1617263858768,0.001,20.616,20.18,3.56368729]
[1617263858966,0.001,20.616,20.216,0.001]
[1617263859168,80.45536922,20.616,20.216,0.001]
[1617263859368,80.45536922,20.616,20.216,2.57519657]
[1617263867978,979.59709529,20.608,20.216,2.57519657]
[1617263868379,1060.05146451,20.608,20.216,2.57519657]
[1617263885600,1060.05146451,20.608,20.157,75.91975424]
[1617263892602,1060.05146451,20.608,20.149,75.91975424]
[1617263893001,1060.05146451,20.608,20.136,183.49717009]
[1617263894603,1060.05146451,20.608,20.1,75.91975424]
[1617263908430,1060.05146451,20.608,20.1,78.04205175]
[1617263943681,1060.05146451,20.608,20.1,261.53922184]